lending/lending_fUSD_20260328
["ID","MTS","AMOUNT","RATE_DAILY","PERIOD"]
[418978734,1774705838977,-1954.45977758,0.00014102,2]
[418978735,1774705838987,-500.0,0.00014237,2]
[418978736,1774705838996,-500.0,0.00014321,2]
[418978737,1774705839006,-457.02609075,0.00014321,2]
[418978738,1774705839015,-410.26,0.00014321,2]
[418978739,1774705839024,-420.0,0.00014325,2]
[418978740,1774705839034,-420.0,0.00014326,2]
[418978741,1774705839044,-4002.85330113,0.00014357,2]
[418978742,1774705839053,-1954.45977758,0.00014358,2]
[418978743,1774705839063,-1680.0,0.00014362,2]
[418978744,1774705839075,-5000.0,0.00014363,2]
[418978745,1774705839084,-1321.91050381,0.00014363,2]
[418978746,1774705839094,-250.0,0.00014363,2]
[418978747,1774705839103,-300.0,0.00014363,2]
[418978748,1774705839112,-172.5,0.00014378,2]
[418978749,1774705839122,-300.0,0.000144,2]
[418978750,1774705839132,-1570.0,0.000144,2]
[418978751,1774705839143,-2807.0,0.000144,2]
[418978752,1774705839152,-1000.0,0.00014421,2]
[418978753,1774705839162,-1000.0,0.00014421,2]
[418978754,1774705839172,-1000.0,0.00014421,2]
[418978755,1774705839182,-1800.0,0.000145,2]
[418978756,1774705839193,-9999.99,0.00014504,2]
[418978757,1774705839202,-8614.67,0.00014504,2]
[418978758,1774705839212,-359.24,0.00014512,2]
[418978759,1774705839222,-1490.94629136,0.00014532,2]
[418978760,1774705839232,-1490.94629136,0.00014532,2]
[418978761,1774705839241,-410.26,0.00014595,2]
[418978762,1774705839250,-255.0,0.0001461,2]
[418978763,1774705839260,-4002.85330113,0.00014614,2]
[418978764,1774705839269,-1954.45977758,0.00014615,2]
[418978765,1774705839279,-3658.78,0.00014691,2]
[418978766,1774705839288,-360.65711115,0.00014795,2]
[418978767,1774705839438,-410.3,0.00014868,2]
[418978768,1774705839449,-4002.85330113,0.0001487,2]
[418978769,1774705839458,-1954.45977758,0.00014871,2]
[418978770,1774705839467,-3516.0,0.0001496,2]
[418978771,1774705839476,-621.0,0.0001496,2]
[418978772,1774705839486,-1045.0,0.0001496,2]
[418978773,1774705839495,-1262.0,0.0001496,2]
[418978774,1774705839506,-415.0,0.0001496,2]
[418978775,1774705839515,-2468.0,0.0001496,2]
[418978776,1774705839527,-1500.0,0.00014968,2]
[418978777,1774705839537,-1500.0,0.00014968,2]
[418978778,1774705839547,-1500.0,0.00014968,2]
[418978779,1774705839556,-500.0,0.00014999,2]
[418978780,1774705839565,-378.70961879,0.00014999,2]
[418978781,1774705839575,-500.0,0.00014999,2]
[418978782,1774705839584,-500.0,0.00014999,2]
[418978783,1774705839594,-500.0,0.00014999,2]
[418978784,1774705839604,-500.0,0.00014999,2]
[418978785,1774705839613,-500.0,0.00014999,2]
[418978786,1774705839624,-500.0,0.00014999,2]
[418978787,1774705839634,-500.0,0.00014999,2]
[418978788,1774705839645,-500.0,0.00014999,2]
[418978789,1774705839657,-500.0,0.00014999,2]
[418978790,1774705839666,-500.0,0.00014999,2]
[418978791,1774705839677,-500.0,0.00014999,2]
[418978792,1774705839687,-1490.94629136,0.00015006,2]
[418978793,1774705839697,-500.0,0.00015054,2]
[418978794,1774705839706,-160.0,0.0001506,2]
[418978795,1774705839716,-959.64475997,0.0001506,2]
[418978796,1774705839726,-160.0,0.0001506,2]
[418978797,1774705839735,-500.0,0.00015109,2]
[418978798,1774705839745,-4002.85330113,0.00015127,2]
[418978799,1774705839754,-1954.45977758,0.00015128,2]
[418978800,1774705839764,-500.0,0.00015164,2]
[418978801,1774705839774,-197.1988,0.000152,2]
[418978802,1774705839784,-2807.0,0.0001536,2]
[418978803,1774705839793,-4002.85330113,0.00015384,2]
[418978804,1774705839803,-1954.45977758,0.00015384,2]
[418978805,1774705839813,-1973.0,0.000155,3]
[418978806,1774705839822,-1640.03697913,0.00015516,2]
[418978807,1774705839842,-2000.0,0.00015516,2]
[418978808,1774705839854,-2000.0,0.00015516,2]
[418978809,1774705839864,-3540.9,0.000156,2]
[418978810,1774705839874,-2355.62,0.000156,2]
[418978811,1774705839885,-636.06,0.00015629,2]
[418978812,1774705839894,-4002.85330113,0.0001564,2]
[418978813,1774705839907,-1954.45977758,0.00015641,2]
[418978814,1774705839917,-1570.0,0.0001568,2]
[418978815,1774705839927,-3241.46,0.000157,2]
[418978816,1774705839938,-587.0,0.00015709,2]
[418978817,1774705839948,-151.02044316,0.00015743,2]
[418978819,1774705839958,-286.0,0.00015781,2]
[418978820,1774705839968,-2351.0,0.00015798,2]
[418978821,1774705839978,-503.0,0.000158,2]
[418978822,1774705839988,-433.0,0.00015812,2]
[418978823,1774705839998,-2000.0,0.0001589,2]
[418978824,1774705840008,-4002.85330113,0.00015897,2]
[418978825,1774705840018,-1954.45977758,0.00015897,2]
[418978826,1774705840028,-2036.54,0.000159,2]
[418978827,1774705840039,-18575.26,0.000159,2]
[418978828,1774705840050,-360.65711115,0.000159,2]
[418978829,1774705840060,-2172.0,0.000159,5]
[418978830,1774705840071,-1328.0,0.000159,5]
[418978831,1774705840082,-289.67179333,0.0001599,2]
[418978832,1774705840092,-27435.9062586,0.00015994,2]
[418978833,1774705840102,-697990.5889834,0.00015994,2]
[418978834,1774705840111,-151.0,0.00015997,2]
[418978835,1774705840121,-811995.59600245,0.00016,2]
[418978836,1774705840131,-2226753.16756064,0.00016,2]
[418978838,1774705840619,-415.0,0.0001369,2]
[418978839,1774705840850,-3821.5977498,0.0001369,2]
[418978840,1774705840860,-150.0,0.000138,2]
[418978841,1774705840870,-855.0,0.00015781,2]
[418978842,1774705840879,-630969.8395365,0.00016,2]
[418978843,1774705840889,-1523.0,0.00016,2]
[418978844,1774705840898,-1523.0,0.00016,2]
[418978845,1774705840908,-3849.0,0.00016,2]
[418978846,1774705840917,-1523.0,0.00016,2]
[418978847,1774705840927,-1523.0,0.00016,2]
[418978848,1774705840936,-1523.0,0.00016,2]
[418978849,1774705840946,-1294.97467354,0.00016,2]
[418978850,1774705840956,-250.0,0.00016,3]
[418978851,1774705840965,-200.0,0.00016,2]
[418978852,1774705840974,-180.0,0.00016,2]
[418978853,1774705840984,-235.0,0.00016033,2]
[418978854,1774705840993,-2500.0,0.00016064,2]
[418978855,1774705841002,-2500.0,0.00016064,2]
[418978856,1774705841012,-355.0,0.00016065,2]
[418978857,1774705841022,-217.84187082,0.00016086,2]
[418978858,1774705841032,-151.0,0.000161,2]
[418978859,1774705841042,-236.0,0.000161,2]
[418978860,1774705841052,-352.0,0.000161,2]
[418978861,1774705841061,-453.0,0.000161,2]
[418978862,1774705841071,-168.08464442,0.00016101,2]
[418978863,1774705841080,-200.0,0.00016107,2]
[418978864,1774705841090,-9999.99,0.00016116,2]
[418978865,1774705841099,-150.0,0.00016122,2]
[418978866,1774705841109,-150.0,0.00016186,2]
[418978867,1774705841118,-150.0,0.00016222,2]
[418978868,1774705841128,-200.0,0.00016238,2]
[418978869,1774705841137,-166.68,0.00016256,2]
[418978870,1774705841147,-4000.0,0.00016282,2]
[418978871,1774705841157,-250.0,0.00016283,2]
[418978872,1774705841167,-282.89336559,0.00016333,2]
[418978873,1774705841176,-200.0,0.0001634,2]
[418978874,1774705841186,-554.51,0.00016366,2]
[418978875,1774705841197,-168.0,0.00016374,2]
[418978876,1774705841206,-500.0,0.00016384,2]
[418978877,1774705841216,-150.0,0.000164,2]
[418978878,1774705841226,-213.0,0.000164,2]
[418978879,1774705841235,-302.46,0.000164,2]
[418978880,1774705841246,-355.08524227,0.000164,2]
[418978881,1774705841256,-235.0,0.00016427,2]
[418978882,1774705841265,-2500.0,0.00016438,2]
[418978884,1774705841275,-2500.0,0.00016438,2]
[418978886,1774705841285,-2500.0,0.00016438,2]
[418978888,1774705841294,-2500.0,0.00016438,2]
[418978890,1774705841304,-2500.0,0.00016438,2]
[418978891,1774705841314,-2500.0,0.00016438,2]
[418978892,1774705841323,-2500.0,0.00016438,2]
[418978893,1774705841333,-2500.0,0.00016438,2]
[418978894,1774705841344,-2500.0,0.00016438,2]
[418978895,1774705841354,-2500.0,0.00016438,2]
[418978896,1774705841363,-2500.0,0.00016438,2]
[418978897,1774705841373,-2500.0,0.00016438,2]
[418978898,1774705841382,-2500.0,0.00016438,2]
[418978899,1774705841392,-2500.0,0.00016438,2]
[418978900,1774705841402,-2500.0,0.00016438,2]
[418978901,1774705841412,-2500.0,0.00016438,2]
[418978902,1774705841421,-2500.0,0.00016438,2]
[418978903,1774705841432,-2500.0,0.00016438,2]
[418978904,1774705841442,-2500.0,0.00016438,2]
[418978905,1774705841452,-2500.0,0.00016438,2]
[418978906,1774705841461,-2500.0,0.00016438,2]
[418978907,1774705841470,-2500.0,0.00016438,2]
[418978908,1774705841479,-2500.0,0.00016438,2]
[418978909,1774705841489,-2500.0,0.00016438,2]
[418978910,1774705841499,-2500.0,0.00016438,2]
[418978911,1774705841508,-2500.0,0.00016438,2]
[418978912,1774705841517,-205.32062414,0.00016438,2]
[418978913,1774705841526,-260.0,0.00016438,2]
[418978914,1774705841535,-182.89,0.00016454,2]
[418978915,1774705841544,-355.0,0.00016514,2]
[418978916,1774705841554,-363.24932616,0.000166,2]
[418978917,1774705841563,-1924.4137184,0.00016612,2]
[418978918,1774705841572,-1755.16792343,0.00016612,2]
[418978919,1774705841582,-355.0,0.00016664,2]
[418978920,1774705841591,-4000.0,0.0001667,2]
[418978921,1774705841600,-355.0,0.00016709,2]
[418978922,1774705841609,-233.7,0.00016712,2]
[418978923,1774705841618,-2000.0,0.000168,2]
[418978924,1774705841628,-1600.0,0.00016815,2]
[418978925,1774705841641,-2000.0,0.000169,2]
[418978926,1774705841652,-880.56,0.00016981,2]
[418978927,1774705841661,-76585.4126392,0.00016999,7]
[418978928,1774705841671,-155.0,0.00016999,2]
[418978929,1774705841680,-312594.55552125,0.00017,2]
[418978930,1774705841689,-514105.32471158,0.00017,2]
[418978931,1774705841698,-400.0,0.00017,2]
[418978932,1774705841708,-585.0,0.00017,2]
[418978933,1774705841717,-550813.62589774,0.00017,2]
[418978934,1774705841726,-172.0,0.00017,2]
[418978935,1774705841736,-350.0,0.00017,2]
[418978936,1774705841747,-788.31929485,0.00017,30]
[418978937,1774705841757,-160.0,0.00017,7]
[418978938,1774705841768,-4000.0,0.00017058,2]
[418978939,1774705841777,-554.51,0.00017077,2]
[418978940,1774705841788,-89198.97962417,0.000171,2]
[418978941,1774705841797,-736.0,0.00017108,2]
[418978942,1774705841806,-235.0,0.00017123,2]
[418978943,1774705841816,-355.0,0.00017144,2]
[418978944,1774705841825,-355.0,0.00017174,2]
[418978945,1774705841962,-172.5,0.00017224,2]
[418978946,1774705841973,-823.0,0.00017226,2]
[418978947,1774705841984,-503.38259225,0.00017346,2]
[418978948,1774705841994,-6917.69554971,0.00017346,2]
[418978949,1774705842003,-3292.0,0.00017377,2]
[418978950,1774705842013,-2355.62,0.000174,2]
[418978951,1774705842023,-251.0,0.000175,7]
[418978952,1774705842032,-3540.9,0.000175,2]
[418978953,1774705842041,-160.0,0.000175,7]
[418978954,1774705842056,-2000.0,0.00017554,2]
[418978955,1774705842065,-3241.46,0.000176,2]
[418978956,1774705842075,-226.542802,0.00017627,7]
[418978957,1774705842085,-210.24,0.00017655,2]
[418978958,1774705842096,-403.0,0.000177,5]
[418978959,1774705842105,-788.13942688,0.000177,2]
[418978960,1774705842115,-503.0,0.000177,2]
[418978961,1774705842124,-151.02044316,0.00017795,2]
[418978962,1774705842134,-697990.5889834,0.00017806,2]
[418978963,1774705842143,-800.0,0.00017808,2]
[418978964,1774705842152,-27435.9062586,0.00017814,2]
[418978965,1774705842162,-1009.19329333,0.0001786,2]
[418978966,1774705842171,-1231.34934276,0.0001789,2]
[418978967,1774705842180,-1079.00106241,0.0001789,2]
[418978968,1774705842189,-2036.54,0.000179,2]
[418978969,1774705842199,-18575.26,0.000179,2]
[418978970,1774705842208,-621.0,0.0001796,2]
[418978971,1774705842218,-1045.0,0.0001796,2]
[418978972,1774705842227,-1262.0,0.0001796,2]
[418978973,1774705842236,-415.0,0.0001796,2]
[418978974,1774705842246,-2468.0,0.0001796,2]
[418978975,1774705842255,-20000.0,0.0001799,2]
[418978976,1774705842264,-151.0,0.00018,2]
[418978977,1774705842273,-110207.22457458,0.00018,2]
[418978978,1774705842283,-1200.0799361,0.00018,2]
[418978979,1774705842292,-309.39391783,0.00018,2]
[418978980,1774705842302,-25106.70960159,0.00018,5]
[418978981,1774705842315,-1000.27229706,0.00018,2]
[418978982,1774705842325,-200.0,0.00018,2]
[418978983,1774705842334,-213.019419,0.00018032,7]
[418978984,1774705842343,-1791.1487817,0.000181,2]
[418978985,1774705842352,-168.18,0.0001823,2]
[418978986,1774705842362,-278.61157668,0.00018285,5]
[418978987,1774705842371,-210.23,0.00018334,2]
[418978988,1774705842381,-151.0,0.00018353,2]
[418978989,1774705842390,-89113.55,0.00018356,2]
[418978990,1774705842400,-1600.0,0.00018497,2]
[418978991,1774705842410,-1252.0,0.00018513,2]
[418978992,1774705842419,-250.0,0.0001863,2]
[418978993,1774705842429,-1961.58,0.00018694,2]
[418978994,1774705842439,-155.0,0.00018699,2]
[418978995,1774705842450,-519.0,0.00018714,6]
[418978996,1774705842459,-172.5,0.00018749,2]
[418978997,1774705842469,-1152.0,0.0001889,2]
[418978998,1774705842478,-293.0,0.00018904,2]
[418978999,1774705842487,-1600.0,0.00018904,2]
[418979000,1774705842497,-150.0,0.00018999,2]
[418979001,1774705842505,-150.0,0.00018999,2]
[418979002,1774705842515,-150.0,0.00018999,2]
[418979003,1774705842524,-150.0,0.00018999,2]
[418979004,1774705842534,-150.0,0.00018999,2]
[418979005,1774705842543,-150.0,0.00018999,2]
[418979006,1774705842552,-150.0,0.00018999,2]
[418979007,1774705842561,-150.0,0.00018999,2]
[418979008,1774705842571,-150.0,0.00018999,2]
[418979009,1774705842580,-150.0,0.00018999,2]
[418979010,1774705842589,-150.0,0.00018999,2]
[418979011,1774705842599,-150.0,0.00018999,2]
[418979012,1774705842610,-150.0,0.00018999,2]
[418979013,1774705842620,-150.0,0.00018999,2]
[418979014,1774705842629,-189.93469316,0.00018999,2]
[418979015,1774705842639,-4190.0,0.00019,2]
[418979016,1774705842649,-5204.35500849,0.00019,2]
[418979017,1774705842658,-170.44482904,0.00019,2]
[418979018,1774705842668,-124776.34143329,0.00019,2]
[418979019,1774705842677,-400.0,0.00019,2]
[418979020,1774705842687,-361.47235527,0.0001901,7]
[418979021,1774705842697,-168.08464442,0.00019019,7]
[418979022,1774705842706,-3374.17617676,0.00019051,2]
[418979023,1774705842715,-4609.0,0.00019115,2]
[418979024,1774705842724,-3000.0,0.00019178,2]
[418979025,1774705842736,-1339.6,0.00019178,2]
[418979026,1774705842745,-20291.19,0.00019178,2]
[418979027,1774705842754,-150.0,0.00019178,2]
[418979028,1774705842765,-150.0,0.00019178,2]
[418979029,1774705842775,-160.33263724,0.00019178,2]
[418979030,1774705842784,-150.0,0.00019178,2]
[418979031,1774705842794,-260.20602756,0.00019178,2]
[418979032,1774705842803,-154.2,0.00019288,2]
[418979033,1774705842813,-2355.62,0.000193,2]
[418979034,1774705842826,-2000.0,0.00019309,2]
[418979035,1774705842836,-3540.9,0.000194,2]
[418979036,1774705842846,-697990.5889834,0.00019618,2]
[418979037,1774705842856,-27435.9062586,0.00019634,2]
[418979038,1774705842866,-233.7,0.00019658,2]
[418979039,1774705842875,-250.0,0.00019726,2]
[418979040,1774705842886,-150.0,0.00019726,2]
[418979041,1774705842895,-250.0,0.00019726,2]
[418979042,1774705842905,-503.0,0.000198,7]
[418979043,1774705842914,-3241.46,0.000198,2]
[418979044,1774705842924,-151.02044316,0.00019848,2]
[418979045,1774705842934,-4962.20389994,0.000199,3]
[418979046,1774705842943,-70204.63524833,0.000199,2]
[418979047,1774705842952,-226.542802,0.00019926,7]
[418979048,1774705842962,-400.0,0.0001997,2]
[418979049,1774705842971,-120115.71839684,0.0001998,2]
[418979050,1774705842981,-610.96527926,0.00019999,2]
[418979052,1774705842990,-533.93397268,0.0002,7]
[418979053,1774705842999,-1500.0,0.0002,2]
[418979055,1774705843008,-7037.94038787,0.0002,2]
[418979058,1774705843017,-1543.57418139,0.0002,2]
[418979060,1774705843026,-177.67652786,0.0002,2]
[418979061,1774705843036,-1479.66549822,0.0002,5]
[418979062,1774705843046,-25767.01048794,0.0002,2]
[418979064,1774705843056,-3950.0,0.0002,2]
[418979065,1774705843066,-1303.11925708,0.0002,2]
[418979066,1774705843075,-2963.89118004,0.0002,7]
[418979067,1774705843084,-132963.43795022,0.0002,2]
[418979068,1774705843094,-1051.95003212,0.0002,2]
[418979069,1774705843103,-2882.69319078,0.0002,2]
[418979070,1774705843112,-13011.25735572,0.0002,2]
[418979071,1774705843122,-152.0,0.0002,2]
[418979072,1774705843132,-3253.17635722,0.0002,2]
[418979073,1774705843141,-5112.22863877,0.0002,2]
[418979074,1774705843152,-755.10640697,0.0002,2]
[418979075,1774705843163,-150.0,0.0002,2]
[418979076,1774705843172,-2000.0,0.0002,2]
[418979077,1774705843181,-18575.26,0.0002,2]
[418979078,1774705843191,-2400.0,0.0002,2]
[418979079,1774705843201,-191.73,0.0002,2]
[418979080,1774705843210,-200.0,0.0002,2]
[418979081,1774705843220,-1000.0,0.0002,7]
[418979082,1774705843230,-2000.0,0.0002001,2]
[418979083,1774705843239,-2173.139589,0.0002002,2]
[418979085,1774705843250,-2129.0,0.00020025,2]
[418979087,1774705843260,-250.0,0.00020072,2]
[418979089,1774705843269,-2036.54,0.000201,2]
[418979091,1774705843279,-1600.0,0.00020178,2]
[418979093,1774705843289,-294.0,0.00020273,2]
[418979094,1774705843299,-350.0,0.00020274,2]
[418979095,1774705843309,-150.0,0.00020274,2]
[418979096,1774705843319,-350.0,0.00020274,2]
[418979098,1774705843329,-213.019419,0.00020384,7]
[418979101,1774705843339,-155.0,0.00020399,2]
[418979104,1774705843348,-161.66,0.00020548,2]
[418979106,1774705843358,-21682.89,0.00020548,2]
[418979108,1774705843368,-172.5,0.00020659,2]
[418979109,1774705843377,-22817.37413052,0.000207,2]
[418979110,1774705843388,-1613.0,0.00020715,2]
[418979111,1774705843398,-450.0,0.00020822,2]
[418979113,1774705843408,-150.0,0.00020822,2]
[418979116,1774705843418,-450.0,0.00020822,2]
[418979119,1774705843428,-621.0,0.0002096,2]
[418979121,1774705843439,-1045.0,0.0002096,2]
[418979123,1774705843449,-1262.0,0.0002096,2]
[418979125,1774705843459,-415.0,0.0002096,2]
[418979128,1774705843469,-202.881,0.0002096,2]
[418979130,1774705843479,-160.0,0.00021,7]
[418979132,1774705843489,-20000.0,0.00021,2]
[418979135,1774705843498,-1201.60789136,0.00021,2]
[418979138,1774705843508,-198.31810907,0.00021,2]
[418979140,1774705843518,-450.0,0.00021,2]
[418979142,1774705843528,-187.84336109,0.00021001,2]
[418979144,1774705843538,-503.38259225,0.00021001,2]
[418979146,1774705843548,-6917.69554971,0.00021001,2]
[418979148,1774705843558,-2000.0,0.00021027,2]
[418979150,1774705843568,-2000.0,0.00021027,2]
[418979152,1774705843577,-2000.0,0.00021027,2]
[418979154,1774705843586,-2000.0,0.00021027,2]
[418979156,1774705843596,-2000.0,0.00021027,2]
[418979158,1774705843605,-2000.0,0.00021027,2]
[418979161,1774705843614,-2000.0,0.00021027,2]
[418979162,1774705843623,-2000.0,0.00021027,2]
[418979164,1774705843633,-2000.0,0.00021027,2]
[418979166,1774705843642,-2000.0,0.00021027,2]
[418979168,1774705843652,-6453.0,0.00021027,2]
[418979171,1774705843662,-172.5,0.00021044,2]
[418979172,1774705843683,-2000.0,0.00021065,2]
[418979173,1774705843693,-1887.73233068,0.00021096,2]
[418979174,1774705843703,-500.0,0.00021101,2]
[418979175,1774705843712,-500.0,0.00021101,2]
[418979176,1774705843723,-500.0,0.00021101,2]
[418979177,1774705843733,-500.0,0.00021101,2]
[418979178,1774705843743,-500.0,0.00021101,2]
[418979179,1774705843752,-657.25774485,0.00021101,2]
[418979180,1774705843762,-594.27289164,0.00021101,2]
[418979181,1774705843772,-500.0,0.00021101,2]
[418979182,1774705843782,-618.25217888,0.00021101,2]
[418979183,1774705843792,-1000.0,0.00021101,2]
[418979184,1774705843801,-1000.0,0.00021101,2]
[418979185,1774705843811,-500.0,0.00021101,2]
[418979186,1774705843821,-679.81219059,0.00021101,2]
[418979187,1774705843830,-1000.0,0.00021101,2]
[418979188,1774705843840,-1000.0,0.00021101,2]
[418979189,1774705843850,-500.0,0.00021101,2]
[418979190,1774705843860,-1000.0,0.00021101,2]
[418979191,1774705843870,-500.0,0.00021101,2]
[418979192,1774705843880,-500.0,0.00021101,2]
[418979193,1774705843890,-586.08831931,0.00021101,2]
[418979194,1774705843900,-1300.0,0.00021101,2]
[418979195,1774705843910,-1000.0,0.00021101,2]
[418979196,1774705843920,-967.99741926,0.00021101,2]
[418979197,1774705843930,-505.11666495,0.00021101,2]
[418979198,1774705843940,-792.06819822,0.00021101,2]
[418979199,1774705843950,-1300.0,0.00021101,2]
[418979200,1774705843961,-1000.0,0.00021101,2]
[418979201,1774705843970,-2500.0,0.00021101,2]
[418979202,1774705843980,-1300.0,0.00021101,2]
[418979203,1774705843990,-1000.0,0.00021101,2]
[418979204,1774705844001,-1300.0,0.00021101,2]
[418979205,1774705844011,-2500.0,0.00021101,2]
[418979206,1774705844022,-500.0,0.00021101,2]
[418979207,1774705844031,-1000.0,0.00021101,2]
[418979208,1774705844041,-1300.0,0.00021101,2]
[418979209,1774705844052,-1300.0,0.00021101,2]
[418979210,1774705844061,-2500.0,0.00021101,2]
[418979211,1774705844071,-500.0,0.00021101,2]
[418979212,1774705844080,-1300.0,0.00021101,2]
[418979213,1774705844090,-1000.0,0.00021101,2]
[418979214,1774705844100,-1300.0,0.00021101,2]
[418979215,1774705844110,-2500.0,0.00021101,2]
[418979216,1774705844119,-1000.0,0.00021101,2]
[418979217,1774705844129,-1300.0,0.00021101,2]
[418979218,1774705844139,-500.0,0.00021101,2]
[418979219,1774705844149,-900.0,0.00021101,2]
[418979220,1774705844159,-2500.0,0.00021101,2]
[418979221,1774705844169,-500.0,0.00021101,2]
[418979222,1774705844179,-1000.0,0.00021101,2]
[418979223,1774705844190,-1300.0,0.00021101,2]
[418979224,1774705844199,-500.0,0.00021101,2]
[418979225,1774705844210,-1300.0,0.00021101,2]
[418979226,1774705844220,-900.0,0.00021101,2]
[418979227,1774705844230,-2500.0,0.00021101,2]
[418979228,1774705844241,-1300.0,0.00021101,2]
[418979229,1774705844251,-500.0,0.00021101,2]
[418979230,1774705844261,-1000.0,0.00021101,2]
[418979231,1774705844271,-1300.0,0.00021101,2]
[418979232,1774705844281,-8100.0,0.00021101,2]
[418979233,1774705844290,-500.0,0.00021101,2]
[418979234,1774705844301,-900.0,0.00021101,2]
[418979235,1774705844465,-2500.0,0.00021101,2]
[418979236,1774705844475,-518.0482338,0.00021101,2]
[418979237,1774705844485,-1300.0,0.00021101,2]
[418979238,1774705844495,-1135.11064733,0.00021101,2]
[418979239,1774705844505,-1300.0,0.00021101,2]
[418979240,1774705844515,-8100.0,0.00021101,2]
[418979241,1774705844525,-500.0,0.00021101,2]
[418979242,1774705844535,-900.0,0.00021101,2]
[418979243,1774705844545,-2500.0,0.00021101,2]
[418979244,1774705844555,-1300.0,0.00021101,2]
[418979245,1774705844566,-1300.0,0.00021101,2]
[418979246,1774705844576,-8100.0,0.00021101,2]
[418979247,1774705844585,-900.0,0.00021101,2]
[418979248,1774705844595,-500.0,0.00021101,2]
[418979249,1774705844605,-2500.0,0.00021101,2]
[418979250,1774705844615,-500.0,0.00021101,2]
[418979251,1774705844624,-1300.0,0.00021101,2]
[418979252,1774705844634,-1300.0,0.00021101,2]
[418979253,1774705844644,-8100.0,0.00021101,2]
[418979254,1774705844654,-900.0,0.00021101,2]
[418979255,1774705844663,-2500.0,0.00021101,2]
[418979256,1774705844673,-586.25077889,0.00021101,2]
[418979257,1774705844683,-500.0,0.00021101,2]
[418979258,1774705844693,-1300.0,0.00021101,2]
[418979259,1774705844703,-1300.0,0.00021101,2]
[418979260,1774705844712,-8100.0,0.00021101,2]
[418979261,1774705844722,-900.0,0.00021101,2]
[418979262,1774705844732,-2500.0,0.00021101,2]
[418979263,1774705844743,-500.0,0.00021101,2]
[418979264,1774705844752,-1300.0,0.00021101,2]
[418979265,1774705844762,-1300.0,0.00021101,2]
[418979266,1774705844771,-8100.0,0.00021101,2]
[418979267,1774705844781,-900.0,0.00021101,2]
[418979268,1774705844791,-2500.0,0.00021101,2]
[418979269,1774705844801,-500.0,0.00021101,2]
[418979270,1774705844810,-1300.0,0.00021101,2]
[418979271,1774705844819,-2180.1819813,0.00021101,2]
[418979272,1774705844829,-8100.0,0.00021101,2]
[418979273,1774705844839,-900.0,0.00021101,2]
[418979274,1774705844849,-2500.0,0.00021101,2]
[418979275,1774705844858,-1300.0,0.00021101,2]
[418979276,1774705844869,-500.0,0.00021101,2]
[418979277,1774705844880,-1300.0,0.00021101,2]
[418979278,1774705844891,-8100.0,0.00021101,2]
[418979279,1774705844902,-4742.69033101,0.00021101,2]
[418979280,1774705844912,-900.0,0.00021101,2]
[418979281,1774705844921,-1300.0,0.00021101,2]
[418979282,1774705844930,-1300.0,0.00021101,2]
[418979283,1774705844940,-500.0,0.00021101,2]
[418979284,1774705844950,-8100.0,0.00021101,2]
[418979285,1774705844959,-900.0,0.00021101,2]
[418979286,1774705844968,-1300.0,0.00021101,2]
[418979287,1774705844978,-1498.81012003,0.00021101,2]
[418979288,1774705844988,-500.0,0.00021101,2]
[418979289,1774705844997,-8100.0,0.00021101,2]
[418979290,1774705845007,-900.0,0.00021101,2]